bitfinex/quotes_ETHUSD_20250724
["timestamp","ask_amount","ask_price","bid_price","bid_amount"]
[1753364367077,3.00018565,3642.6,3642.5,1e-08]
[1753364367486,0.25489383,3642.6,3642.5,1e-08]
[1753364367669,3.00122581,3642.6,3642.5,0.48100001]
[1753364368001,3.00122581,3642.6,3642.5,0.75100001]
[1753364368370,0.25593399,3642.6,3642.5,0.75100001]
[1753364368582,3.00122581,3642.6,3642.5,0.75100001]
[1753364368777,0.25593399,3642.6,3642.5,1.21290001]
[1753364368979,0.40956373,3644.4,3642.6,3.0]
[1753364369178,0.1376,3643.7,3643.6,3.51620964]
[1753364369379,0.1376,3643.8,3643.6,3.51617909]
[1753364369579,4.687,3644.9,3643.6,3.51617909]
[1753364369580,0.04,3644.9,3643.7,0.9429]
[1753364369806,0.1368,3644.4,3644.3,2.74401119]
[1753364370006,0.1368,3644.4,3644.3,3.68691119]
[1753364370301,0.1368,3644.4,3644.3,0.9429]
[1753364370690,0.1368,3644.4,3644.3,0.4864]
[1753364371104,0.1368,3644.4,3644.3,0.9429]
[1753364371269,0.1368,3644.4,3644.3,6.68691119]
[1753364371474,0.04,3644.9,3644.4,3.52586115]
[1753364371674,0.1768,3644.9,3644.4,3.52586115]
[1753364371871,0.1768,3644.9,3644.5,0.9429]
[1753364372076,0.04,3644.9,3644.6,0.9429]
[1753364372315,0.04,3644.9,3644.7,0.9429]
[1753364372512,0.1768,3644.9,3644.7,0.9429]
[1753364372808,0.1768,3644.9,3644.5,0.4864]
[1753364372980,0.1368,3644.7,3644.4,0.782]
[1753364373183,0.1368,3644.7,3644.6,0.4864]
[1753364373509,0.1368,3644.5,3644.4,0.782]
[1753364373810,2.74395403,3644.4,3644.1,0.4864]
[1753364374009,0.1376,3644.2,3643.9,3.0]
[1753364374314,0.1376,3644.0,3643.9,3.0]
[1753364374508,0.1376,3644.0,3643.8,0.8165]
[1753364374695,0.1376,3644.0,3643.9,0.4864]
[1753364375586,0.1376,3644.0,3643.9,3.4864]
[1753364375925,0.1376,3644.0,3643.9,0.9429]
[1753364376072,0.1376,3644.0,3643.9,0.4864]
[1753364378112,0.04,3644.9,3643.9,0.97034312]
[1753364378320,0.1368,3644.4,3644.1,3.0]
[1753364378522,0.1368,3644.4,3644.2,0.9429]
[1753364378724,0.1368,3644.4,3644.3,2.74401119]
[1753364379017,0.04,3644.9,3644.8,6.50223476]
[1753364379386,0.04,3644.9,3644.8,6.98863476]
[1753364379795,0.04,3644.9,3644.8,4.245]
[1753364380298,0.04,3644.9,3644.8,3.7586]
[1753364380624,0.04,3644.9,3644.8,6.98863476]
[1753364381122,0.04,3644.9,3644.8,7.44513476]
[1753364381318,0.04,3644.9,3644.8,7.58193476]
[1753364383410,0.04,3644.9,3644.8,12.20493476]
[1753364384208,0.04,3644.9,3644.8,12.19793476]
[1753364385825,0.1368,3645.6,3644.8,12.19793476]
[1753364386026,0.002,3645.8,3645.7,5.74295745]
[1753364386225,0.002,3645.8,3645.7,10.35395745]
[1753364386392,0.002,3645.8,3645.7,8.5539]
[1753364386794,0.002,3645.8,3645.7,8.5519]
[1753364387191,0.002,3645.8,3645.7,3.4864]
[1753364387395,2.74488222,3645.8,3645.7,7.607]
[1753364387626,0.002,3645.8,3645.7,7.607]
[1753364388200,0.002,3645.8,3645.7,8.0934]
[1753364388411,2.74488222,3645.8,3645.7,8.0934]
[1753364388628,2.74488222,3645.8,3645.7,7.607]
[1753364388929,2.74488222,3645.8,3645.7,3.0]
[1753364389235,2.74488222,3645.8,3643.8,6.73084643]
[1753364389236,0.918,3645.8,3644.7,0.4864]
[1753364389457,0.55,3645.6,3644.1,0.7919]
[1753364389599,2.74408649,3644.2,3644.1,0.001]
[1753364390106,2.74402023,3644.3,3644.1,0.001]
[1753364390305,2.74408649,3644.2,3644.1,0.001]
[1753364392036,2.74408649,3644.2,3644.1,0.4874]
[1753364392749,2.74340895,3645.1,3644.1,0.9469]
[1753364393036,2.74408649,3644.2,3644.1,0.001]
[1753364394448,3.67878649,3644.2,3644.1,0.001]
[1753364395008,2.74408649,3644.2,3644.1,0.001]
[1753364395939,2.88168649,3644.2,3644.1,0.001]
[1753364397412,2.88168649,3644.2,3644.1,0.4874]
[1753364397611,2.88168649,3644.2,3644.1,0.001]
[1753364398306,2.74408649,3644.2,3644.1,0.4874]
[1753364398719,2.74408649,3644.2,3644.1,0.001]
[1753364399127,3.20528649,3644.2,3644.1,0.001]
[1753364399326,2.74408649,3644.2,3644.1,0.001]
[1753364400544,3.66888649,3644.2,3644.1,0.001]
[1753364401109,2.74446304,3643.7,3643.1,0.04]
[1753364401436,0.162,3643.8,3642.5,0.27000001]
[1753364401437,2.74521646,3642.7,3642.5,0.27000001]
[1753364401809,2.88281646,3642.7,3642.5,0.27000001]
[1753364402110,0.1376,3642.7,3642.5,0.27000001]
[1753364402307,4.581,3643.3,3642.5,0.27000001]
[1753364402551,2.74514687,3642.8,3642.5,0.27000001]
[1753364402720,2.74521646,3642.7,3642.5,0.27000001]
[1753364402922,3.20641646,3642.7,3642.5,0.27000001]
[1753364403250,2.74521646,3642.7,3642.5,0.27000001]
[1753364403546,3.67001646,3642.7,3642.5,0.27000001]
[1753364404367,2.9071889,3642.8,3642.5,0.27000001]
[1753364404563,7.32521646,3642.7,3642.5,0.27000001]
[1753364404711,0.6232,3643.2,3642.5,0.27000001]
[1753364404913,2.90646917,3643.7,3642.6,0.9433]
[1753364405119,4.581,3643.6,3643.0,2.7449774]
[1753364405366,7.32554074,3643.6,3642.9,2.74506574]
[1753364405666,2.74463079,3643.5,3643.1,0.4828]
[1753364405816,2.74463079,3643.5,3642.6,2.7462911]
[1753364405817,4.581,3643.6,3642.6,0.4838]
[1753364406017,2.74497014,3643.1,3642.6,0.001]
[1753364406258,4.581,3643.1,3642.6,0.001]
[1753364406570,4.581,3643.4,3642.7,0.4828]
[1753364406718,4.581,3643.4,3642.7,3.22795995]
[1753364406912,0.162,3643.7,3642.7,0.4828]
[1753364407211,2.74476813,3643.3,3642.7,3.4828]
[1753364407556,7.32540213,3643.8,3643.1,2.74485256]
[1753364407716,4.581,3643.8,3642.6,0.001]
[1753364407917,0.9248,3643.7,3642.6,0.001]
[1753364408249,2.74453836,3643.6,3642.6,0.001]
[1753364408454,0.55,3643.6,3642.6,0.001]
[1753364408625,1.0136,3643.6,3642.6,0.001]
[1753364408818,2.74521646,3642.7,3642.6,0.001]
[1753364409258,3.67001646,3642.7,3642.6,0.001]
[1753364409492,0.9248,3642.7,3642.6,0.001]
[1753364409766,2.74521646,3642.7,3642.6,0.001]
[1753364410417,0.162,3642.9,3642.6,0.001]
[1753364410654,4.581,3643.0,3642.6,0.001]
[1753364410954,7.32588794,3643.2,3642.6,3.2290807]
[1753364411151,4.581,3643.5,3642.7,0.9423]
[1753364411350,7.32561993,3643.5,3642.7,0.9423]
[1753364411539,4.581,3643.5,3642.9,2.74505935]
[1753364411848,2.74455982,3643.6,3642.7,0.9423]
[1753364412152,2.74474409,3643.4,3642.7,2.74519853]
[1753364412353,0.1376,3642.8,3642.7,0.4828]
[1753364412545,2.74447032,3643.7,3642.8,2.74508881]
[1753364412853,7.32539493,3643.8,3643.2,2.74483896]
[1753364413020,0.1376,3643.3,3642.9,0.4828]
[1753364413221,0.1376,3643.1,3643.0,0.4828]
[1753364413458,0.1376,3643.1,3643.0,3.22779039]
[1753364413755,2.74389978,3644.5,3643.0,3.22779039]
[1753364413756,0.162,3644.5,3643.5,2.74460396]
[1753364414046,2.74370785,3644.8,3643.7,2.74441034]
[1753364414248,0.1376,3643.9,3643.6,0.4828]
[1753364414499,0.5032,3644.9,3643.2,3.0]
[1753364414500,0.1376,3643.7,3643.2,3.0]
[1753364414758,0.9248,3643.6,3642.7,0.4828]
[1753364414920,4.581,3643.9,3642.7,3.4828]
[1753364415119,0.1376,3642.9,3642.7,0.4828]
[1753364415348,0.1376,3642.9,3642.7,2.74521646]
[1753364415657,0.1376,3642.9,3642.8,0.4828]
[1753364415872,2.88272631,3642.9,3642.6,0.001]
[1753364416155,2.88272631,3642.9,3642.6,1e-08]
[1753364416156,2.88281646,3642.7,3642.6,1e-08]
[1753364416649,4.35761646,3642.7,3642.6,1e-08]
[1753364417354,2.74559332,3642.2,3641.8,0.001]
[1753364417520,7.48859332,3642.2,3641.8,0.001]
[1753364417721,8.55099332,3642.2,3641.8,0.001]
[1753364417921,9.10099332,3642.2,3641.8,0.001]
[1753364418341,2.74581948,3641.9,3641.8,1e-08]
[1753364418541,3.43341948,3641.9,3641.8,1e-08]
[1753364418742,5.61850784,3641.9,3641.8,1e-08]
[1753364419255,10.19950784,3641.9,3641.8,1e-08]
[1753364419823,5.61850784,3641.9,3641.8,1e-08]
[1753364420156,4.14370784,3641.9,3641.8,1e-08]
[1753364420342,8.72570784,3641.9,3641.8,1e-08]
[1753364420654,9.62920784,3641.9,3641.8,1e-08]
[1753364421256,8.72570784,3641.9,3641.8,1e-08]
[1753364421955,4.14370784,3641.9,3641.8,1e-08]
[1753364422343,1.39788836,3641.9,3641.8,1e-08]
[1753364422544,1.39788836,3641.9,3641.8,0.48280001]
[1753364422545,0.1376,3641.9,3641.8,0.48280001]
[1753364422856,0.1376,3641.9,3641.8,0.91560001]
[1753364423159,0.1376,3641.9,3641.8,3.66149489]
[1753364423371,0.1376,3642.0,3641.8,0.91560001]
[1753364423657,0.1376,3642.0,3641.9,0.4828]
[1753364424722,2.74553245,3642.3,3641.9,0.9156]
[1753364424928,0.1376,3642.1,3642.0,0.4828]
[1753364425645,0.1376,3642.1,3642.0,3.22854409]
[1753364425833,0.1376,3642.3,3642.2,2.74554422]
[1753364426034,0.1376,3642.3,3642.2,3.66114422]
[1753364426234,4.582,3643.3,3642.5,2.74535144]
[1753364426446,0.1376,3642.6,3642.5,3.22815144]
[1753364426773,0.25540671,3643.2,3642.9,2.7450248]
[1753364426972,0.1376,3642.9,3642.7,0.7872]
[1753364427122,0.1396,3642.9,3642.8,2.7451411]
[1753364427439,0.1396,3642.9,3642.8,3.2279411]
[1753364427642,0.1396,3642.9,3642.8,0.4828]
[1753364427975,0.1396,3642.9,3642.3,0.34535097]
[1753364427976,0.1396,3642.9,3642.3,0.4828]
[1753364428292,0.1376,3642.5,3642.2,3.7572]
[1753364428576,0.002,3642.9,3642.3,0.4828]
[1753364428776,2.74541287,3642.5,3641.8,3.00000001]
[1753364428932,0.1376,3642.0,3641.8,5.74585705]
[1753364429131,0.1376,3642.0,3641.9,3.66181948]
[1753364429363,0.1376,3642.4,3641.9,1.0536]
[1753364429668,0.1376,3642.4,3642.3,3.0]
[1753364430170,0.1376,3642.4,3641.8,1e-08]
[1753364430171,1.0585,3642.4,3641.8,1e-08]
[1753364430326,2.74571551,3642.1,3641.8,1e-08]
[1753364430534,0.1376,3641.9,3641.8,1e-08]
[1753364431085,0.162,3643.2,3641.8,3.91600001]
[1753364431230,0.1376,3642.4,3642.3,2.74549954]
[1753364431560,0.1376,3642.4,3642.3,3.66149954]
[1753364431761,4.581,3643.5,3642.3,0.916]
[1753364431928,0.04,3643.9,3642.8,6.5069411]
[1753364432129,0.04,3643.9,3643.2,3.0]
[1753364432330,0.1776,3643.9,3643.8,2.74438772]
[1753364432763,0.1776,3643.9,3643.8,0.4832]
[1753364432937,0.1776,3643.9,3643.5,3.0]
[1753364433138,0.1776,3643.9,3643.6,2.7445154]
[1753364433642,0.04,3643.9,3643.8,6.68258772]
[1753364433970,0.042,3644.9,3644.8,3.56963476]
[1753364434170,0.042,3644.9,3644.8,6.56963476]
[1753364434384,0.042,3644.9,3644.8,7.48563476]
[1753364435231,0.042,3644.9,3644.8,0.826]
[1753364435543,0.1788,3644.9,3644.3,0.7508]
[1753364435756,2.92243357,3644.9,3644.3,0.7508]
[1753364435960,0.1368,3644.6,3644.3,0.7508]
[1753364436134,0.042,3644.9,3644.6,3.0]
[1753364436333,0.042,3644.9,3644.5,2.88065303]
[1753364436637,0.042,3644.9,3644.8,3.0]
[1753364436842,0.042,3644.9,3644.8,0.02743634]
[1753364437057,0.042,3644.9,3644.8,3.79643476]
[1753364437351,0.042,3644.9,3644.8,3.8238711]
[1753364437738,0.042,3644.9,3644.8,3.65963476]
[1753364437971,0.042,3644.9,3644.8,6.65963476]
[1753364438174,0.042,3644.9,3644.8,3.4832]
[1753364438372,0.042,3644.9,3644.8,6.22683476]
[1753364438680,0.042,3644.9,3644.8,3.4832]
[1753364438850,0.1788,3644.9,3644.8,3.0]
[1753364439038,0.1788,3644.9,3644.8,3.4832]
[1753364439841,0.1788,3644.9,3644.8,3.0]
[1753364440265,0.1788,3644.9,3644.8,3.4832]
[1753364440472,0.042,3644.9,3644.8,6.65963476]
[1753364440681,0.042,3644.9,3644.8,4.0528]
[1753364441180,0.042,3644.9,3644.3,0.7508]
[1753364441380,0.1368,3644.8,3644.4,3.0]
[1753364441585,0.1368,3644.8,3644.5,0.4832]
[1753364441784,0.1368,3644.6,3644.1,2.88169972]
[1753364441957,0.1368,3644.6,3644.2,0.916]
[1753364442284,0.1368,3644.6,3644.5,3.0]
[1753364442588,0.1368,3644.6,3644.0,0.02744237]
[1753364442589,0.1368,3644.6,3643.9,0.7742]
[1753364442756,0.1376,3644.1,3643.5,0.4832]
[1753364442955,0.1376,3643.8,3643.5,3.22781327]
[1753364443156,2.74364782,3644.8,3643.6,0.94344538]
[1753364443369,1.0829,3645.3,3643.7,0.6208]
[1753364443370,0.1376,3644.3,3643.7,0.6208]
[1753364443686,0.1376,3644.3,3644.0,2.7442371]
[1753364443881,0.1376,3644.3,3644.0,2.74417897]
[1753364444080,0.1376,3644.3,3643.9,5.7443107]
[1753364444081,0.1376,3644.3,3644.1,3.22734168]
[1753364444246,0.042,3644.9,3644.2,0.7719]
[1753364444453,0.042,3644.9,3644.4,3.0]
[1753364444791,0.042,3644.9,3644.2,1.6879]
[1753364444792,0.042,3644.9,3644.2,1.2551]
[1753364445001,0.042,3644.9,3644.2,4.2551]
[1753364445302,0.042,3644.9,3644.3,0.4832]
[1753364445441,0.042,3644.9,3644.8,2.74363476]
[1753364445644,0.042,3644.9,3644.8,6.65963476]
[1753364445895,0.042,3644.9,3644.8,7.42903476]
[1753364446203,0.042,3644.9,3644.8,12.00603476]
[1753364446964,0.042,3644.9,3644.8,12.55603476]
[1753364447155,0.042,3644.9,3644.8,7.42903476]
[1753364447358,0.042,3644.9,3644.8,6.99623476]
[1753364447578,0.042,3644.9,3644.8,11.57223476]
[1753364448195,0.042,3644.9,3644.8,4.2526]
[1753364448494,0.042,3644.9,3644.6,4.576]
[1753364448863,2.78556939,3644.9,3644.7,3.0]
[1753364449059,0.042,3644.9,3644.2,4.576]
[1753364449486,0.523,3644.9,3644.2,4.576]
[1753364449689,2.74384484,3644.6,3644.3,3.0]
[1753364449991,2.7436383,3644.8,3644.3,3.0]
[1753364450156,3.26657974,3644.9,3644.3,3.0]
[1753364450363,0.042,3644.9,3644.3,6.22719066]
[1753364450693,2.7855818,3644.9,3644.3,3.4832]
[1753364450993,2.78558171,3644.9,3644.3,6.2272008]
[1753364451198,0.042,3644.9,3644.6,2.74378141]
[1753364451364,0.042,3644.9,3644.2,4.576]
[1753364451365,0.042,3644.9,3644.8,3.0]
[1753364451559,0.042,3644.9,3644.7,3.9257]
[1753364451795,0.042,3644.9,3644.8,0.4832]
[1753364452107,2.74372383,3644.7,3644.4,4.575]
[1753364452264,0.97,3644.9,3644.1,3.0]
[1753364452462,0.97,3644.9,3644.0,3.2273784]
[1753364452463,3.71361079,3644.9,3644.3,3.0]
[1753364452789,2.78561079,3644.9,3644.3,3.0]
[1753364453185,0.042,3644.9,3644.3,5.74400926]
[1753364453417,2.74377129,3644.7,3643.6,8.319]
[1753364453584,2.74386061,3644.5,3643.8,3.0]
[1753364453779,2.74414604,3644.2,3643.8,3.0]
[1753364454017,0.042,3644.9,3644.8,2.74363476]
[1753364454216,0.042,3644.9,3644.8,11.24433476]
[1753364454388,0.042,3644.9,3644.8,11.38113476]
[1753364454919,0.042,3644.9,3644.8,12.17993476]
[1753364455415,0.002,3645.8,3645.7,2.74295745]
[1753364455615,0.1388,3645.8,3645.4,3.0]
[1753364455915,0.1388,3645.8,3645.2,3.62]
[1753364456119,0.002,3645.8,3645.4,0.4832]
[1753364456418,0.1368,3645.6,3645.5,2.74310794]
[1753364456786,0.1368,3645.6,3645.5,6.66880794]
[1753364457130,0.002,3645.8,3645.7,5.74295745]
[1753364457584,0.002,3645.8,3645.7,6.22615745]
[1753364457918,0.002,3645.8,3645.7,3.4832]
[1753364458093,0.002,3645.8,3645.7,3.0]
[1753364458292,0.1388,3645.8,3645.4,3.0]
[1753364458497,0.1368,3645.6,3645.4,3.0]
[1753364459121,0.1368,3645.6,3644.5,3.0]
[1753364459289,0.1368,3645.4,3645.2,5.74333161]
[1753364459489,0.002,3645.8,3645.2,5.74333161]
[1753364459697,0.1368,3645.3,3645.2,3.0]
[1753364459922,0.1368,3645.3,3645.2,5.74333369]
[1753364460220,0.1368,3645.3,3645.2,2.74333369]
[1753364460822,0.1368,3645.3,3645.2,0.4862]
[1753364461010,0.1368,3645.3,3644.9,3.0]
[1753364461208,0.1368,3645.3,3644.9,3.4862]
[1753364461523,0.002,3645.8,3645.7,5.74295745]
[1753364461701,0.002,3645.8,3645.7,6.52825745]
[1753364461899,0.002,3645.8,3645.7,0.1368]
[1753364462087,0.002,3645.8,3645.2,2.74332168]
[1753364462088,1.0585,3645.8,3645.2,2.74332168]
[1753364462287,0.002,3645.8,3645.2,0.4862]
[1753364462525,0.1388,3645.8,3645.4,2.74312256]
[1753364462727,0.002,3645.8,3645.7,2.74295745]
[1753364462933,2.74325084,3645.4,3644.7,0.4862]
[1753364463093,0.162,3645.4,3644.5,0.4862]
[1753364463293,0.162,3645.4,3644.2,7.45365363]
[1753364463294,0.1368,3644.7,3644.2,7.45365363]
[1753364463593,0.1368,3644.7,3643.8,2.7443599]
[1753364463594,0.162,3644.4,3643.5,2.74455478]
[1753364463818,0.162,3644.4,3643.3,4.41419082]
[1753364463819,2.74468902,3643.4,3643.3,4.41419082]
[1753364463991,2.74468902,3643.4,3643.1,0.04]
[1753364463992,2.7448397,3643.2,3643.1,0.04]
[1753364464196,2.8824397,3643.2,3643.1,0.04]
[1753364464398,3.8021397,3643.2,3643.1,0.04]
[1753364465295,1.0573,3643.2,3643.1,0.04]
[1753364465655,3.8021397,3643.2,3643.1,0.04]
[1753364465929,0.1376,3643.2,3643.1,0.04]
[1753364466493,2.8824397,3643.2,3643.1,0.04]
[1753364466893,3.9641397,3643.2,3643.1,0.04]
[1753364468341,4.5141397,3643.2,3643.1,0.04]
[1753364468711,4.0414397,3643.2,3643.1,0.04]
[1753364469015,4.5141397,3643.2,3643.1,0.04]
[1753364469799,9.34298151,3643.2,3643.1,0.04]
[1753364470632,4.5141397,3643.2,3643.1,0.041]
[1753364470931,4.76972459,3643.2,3643.1,0.041]
[1753364471141,8.79372459,3643.2,3643.1,0.041]
[1753364471443,8.79357535,3643.2,3643.1,0.041]
[1753364471598,2.74544256,3642.4,3642.3,0.001]
[1753364471936,2.88304256,3642.4,3642.3,0.001]
[1753364472160,4.51474256,3642.4,3642.3,0.001]
[1753364472646,32.74559332,3642.2,3642.1,1e-08]
[1753364472939,33.45759332,3642.2,3642.1,1e-08]
[1753364473304,37.37729332,3642.2,3642.1,1e-08]
[1753364473905,7.37729332,3642.2,3642.1,1e-08]
[1753364474407,11.95229332,3642.2,3642.1,1e-08]
[1753364474715,7.48259332,3642.2,3642.1,1e-08]
[1753364475023,7.95529332,3642.2,3642.1,1e-08]
[1753364475227,8.40229332,3642.2,3642.1,1e-08]
[1753364475425,8.95229332,3642.2,3642.1,1e-08]
[1753364476135,7.48159332,3642.2,3642.1,1e-08]
[1753364476526,8.40129332,3642.2,3642.1,1e-08]
[1753364476837,8.95129332,3642.2,3642.1,1e-08]
[1753364478708,0.162,3642.2,3642.1,1e-08]
[1753364478904,0.447,3643.0,3642.1,1e-08]
[1753364478905,4.575,3642.5,3642.1,0.48620001]
[1753364479106,0.162,3642.9,3642.2,0.4862]
[1753364479307,0.73410829,3643.8,3642.2,0.4862]
[1753364479308,2.74481857,3643.3,3642.2,0.4862]
[1753364479508,0.585351,3643.7,3643.3,2.74476436]
[1753364479745,0.25413452,3643.7,3643.4,3.6733371]
[1753364480041,0.15247832,3644.4,3643.5,0.95614613]
[1753364480242,0.25413452,3644.5,3644.4,2.7439359]
[1753364480443,0.40659199,3645.6,3644.4,1.6917]
[1753364480642,0.164,3645.7,3644.4,1.6917]
[1753364480643,4.575,3645.3,3644.6,2.74377695]
[1753364480806,2.74306063,3645.6,3644.6,2.74377695]
[1753364481008,7.31806063,3645.6,3644.7,0.4862]
[1753364481331,2.74325466,3645.4,3644.7,0.4862]
[1753364481641,0.002,3645.7,3644.8,6.66643476]
[1753364482307,0.002,3645.7,3644.8,3.9228]
[1753364482642,0.1368,3645.0,3644.8,6.66643476]
[1753364482938,0.1368,3645.2,3644.8,6.66643476]
[1753364483345,0.1368,3645.2,3644.8,3.9228]
[1753364483751,0.1368,3645.2,3644.8,6.66643476]
[1753364484155,0.002,3645.7,3644.8,6.66643476]
[1753364484359,0.1368,3645.5,3644.8,7.45703476]
[1753364485352,2.74309461,3645.6,3644.8,7.45703476]
[1753364485521,0.1368,3645.3,3644.8,7.45703476]
[1753364485854,0.1368,3645.3,3644.8,4.7134]
[1753364486020,2.74326174,3645.3,3644.8,4.7134]
[1753364486221,0.1368,3645.1,3644.8,4.7134]
[1753364486652,0.1368,3645.1,3644.8,7.45703476]
[1753364486954,0.1368,3645.1,3644.8,1.2768]
[1753364487617,0.1368,3645.1,3644.8,4.45703476]
[1753364487815,0.1368,3645.1,3644.8,1.7134]
[1753364488431,2.74338344,3645.2,3644.8,1.2768]
[1753364488650,0.4747,3645.7,3644.4,4.572]
[1753364488651,2.92235949,3644.9,3644.4,4.572]
[1753364488953,0.1368,3644.6,3644.2,0.7603]
[1753364489250,0.042,3644.9,3644.3,0.4641]
[1753364489251,0.1368,3644.4,3644.3,0.4641]
[1753364489454,0.1368,3644.7,3644.4,2.74391635]
[1753364489650,0.1368,3644.7,3644.5,0.9007]
[1753364489853,0.042,3644.9,3644.8,5.74363476]
[1753364490052,0.042,3644.9,3644.8,6.50293476]
[1753364490351,0.042,3644.9,3644.8,7.54043476]
[1753364490560,0.042,3644.9,3644.8,0.7593]
[1753364490863,0.1788,3644.9,3644.4,4.2234]
[1753364491074,0.1368,3644.7,3644.4,3.7593]
[1753364491278,0.1368,3644.7,3644.5,0.4641]
[1753364491651,0.1368,3644.7,3644.6,0.4641]
[1753364492083,0.1368,3644.7,3644.6,3.4641]
[1753364492581,0.042,3644.9,3644.8,6.50183476]
[1753364492788,0.042,3644.9,3644.8,11.07183476]
[1753364492969,0.042,3644.9,3644.8,11.64523476]
[1753364493170,0.042,3644.9,3644.8,12.10933476]
[1753364493488,0.002,3645.7,3645.6,6.54403269]
[1753364493689,0.002,3645.7,3645.6,11.25083269]
[1753364493855,0.002,3645.7,3645.6,12.15153269]
[1753364494050,0.002,3645.7,3645.6,9.4085]
[1753364494302,0.002,3645.7,3645.6,12.15153269]
[1753364494990,0.002,3645.7,3645.6,9.4085]
[1753364495161,0.002,3645.7,3645.6,12.15153269]
[1753364495791,0.002,3645.7,3645.6,9.4085]
[1753364495979,0.002,3645.7,3645.6,9.4075]
[1753364496358,0.002,3645.7,3645.6,4.2651]
[1753364496554,2.74495745,3645.7,3645.6,8.8341]
[1753364496758,2.74313457,3645.5,3645.2,0.4641]
[1753364497091,2.74318318,3645.4,3645.1,5.3284]
[1753364497288,2.87996649,3645.5,3645.2,0.4641]
[1753364497488,0.1368,3645.5,3645.3,0.4641]
[1753364497692,0.1368,3645.5,3645.4,0.4641]
[1753364498192,0.002,3645.7,3645.5,2.7431065]
[1753364498497,0.002,3645.7,3645.6,4.568]
[1753364499194,0.002,3645.7,3645.6,11.23916301]
[1753364499397,0.002,3645.7,3645.6,11.96773269]
[1753364500504,0.002,3645.7,3645.6,7.94973269]
[1753364500684,0.04,3645.9,3645.7,7.05945745]
[1753364500866,0.04,3645.9,3645.8,6.42968222]
[1753364501067,0.04,3645.9,3645.8,7.33038222]
[1753364501283,0.04,3645.9,3645.8,8.09688222]
[1753364501656,1e-08,3646.1,3646.0,3.29273176]
[1753364501966,1e-08,3646.1,3646.0,11.84725907]
[1753364502276,0.04,3646.9,3646.3,6.5096061]
[1753364502453,0.04,3646.9,3646.3,11.2134061]
[1753364502653,0.04,3646.9,3646.3,6.6464061]
[1753364502858,0.04,3646.9,3646.3,12.1141061]
[1753364503871,0.04,3646.9,3646.3,8.935]
[1753364504069,0.1368,3646.8,3646.3,8.935]
[1753364504268,0.1368,3646.8,3646.3,11.6775061]
[1753364504561,0.1368,3646.8,3646.3,8.934]
[1753364504773,0.1368,3646.8,3646.3,11.6765061]
[1753364504975,0.1368,3646.8,3646.3,3.9039]
[1753364505174,0.4629,3646.8,3646.3,7.566]
[1753364505387,0.1368,3646.5,3646.3,7.566]
[1753364505596,0.1368,3646.5,3646.3,8.0301]
[1753364505758,0.04,3646.9,3646.3,12.18630652]
[1753364505960,0.04,3646.9,3646.3,12.32310652]
[1753364506899,0.04,3646.9,3646.3,11.88650652]
[1753364507102,0.1368,3646.8,3646.3,11.88650652]
[1753364507307,0.1368,3646.8,3646.3,11.88550652]
[1753364507475,2.8789775,3646.8,3646.3,7.90250042]
[1753364507678,0.04,3646.9,3646.3,7.565]
[1753364507887,0.1388,3646.6,3646.3,10.3075061]
[1753364508217,0.1388,3646.6,3646.3,10.7716061]
[1753364508366,0.002,3646.6,3646.3,11.2082061]
[1753364508562,0.002,3646.6,3646.3,11.3450061]
[1753364508990,0.002,3646.6,3646.3,11.55084615]
[1753364509408,0.002,3646.6,3646.3,12.38364615]
[1753364509794,0.002,3646.6,3646.3,7.81864615]
[1753364510103,0.002,3646.6,3646.3,8.73944005]
[1753364510297,0.002,3646.6,3646.3,6.08514615]
[1753364510463,0.002,3646.6,3646.3,7.76984005]
[1753364510666,2.74443089,3646.4,3645.6,4.7541]
[1753364510909,0.1368,3646.1,3645.1,0.8328]
[1753364511104,0.4629,3646.3,3645.7,3.0]
[1753364511309,0.1368,3646.0,3645.8,4.563]
[1753364511675,0.002,3646.4,3645.9,3.4641]
[1753364511862,0.002,3646.4,3646.0,5.0271]
[1753364511863,0.1368,3646.3,3646.0,5.0271]
[1753364512069,0.1368,3646.3,3646.1,0.4641]
[1753364512405,0.002,3646.4,3646.3,5.7425061]
[1753364513010,0.002,3646.4,3646.3,6.6685061]
[1753364513425,0.002,3646.4,3646.3,6.2066061]
[1753364513606,0.002,3646.4,3646.3,6.6685061]
[1753364515391,1e-08,3646.6,3646.5,3.29235568]
[1753364515607,1e-08,3646.6,3646.5,11.70607923]
[1753364515781,1e-08,3646.6,3646.5,12.60465568]
[1753364515985,1e-08,3646.6,3646.5,12.74145568]
[1753364516895,1e-08,3646.6,3646.5,12.87543721]
[1753364517295,1e-08,3646.6,3646.5,12.74145568]
[1753364518015,1e-08,3646.6,3646.5,8.17945568]
[1753364518187,1e-08,3646.6,3646.5,12.19145568]
[1753364518387,1e-08,3646.6,3646.5,7.62945568]
[1753364518589,1e-08,3646.6,3646.5,12.19045568]
[1753364518829,1e-08,3646.6,3646.5,12.18475568]
[1753364519396,1e-08,3646.6,3646.5,12.73475568]
[1753364519686,0.042,3647.9,3647.5,2.74160383]
[1753364519888,0.042,3647.9,3647.5,11.25560383]
[1753364520087,0.042,3647.9,3647.5,12.17590383]
[1753364520428,0.04,3648.9,3647.6,3.0]
[1753364520588,0.04,3648.9,3648.8,2.74062705]
[1753364520921,0.04,3648.9,3648.8,10.30062705]
[1753364521325,0.04,3648.9,3648.8,5.74062705]
[1753364521490,0.04,3648.9,3648.8,10.30062705]
[1753364521824,0.04,3648.9,3648.8,6.66092705]
[1753364522023,0.04,3648.9,3648.8,10.75902705]